Cogmind - Beta 16 @@@ ROGUE MODE // 2025.10.31 @ 19:00:16 // Winter2019/RPGLIKE Player: Jack Result: Self-destructed Performance ------------- Evolutions (2) 1000 Regions Visited (3) 600 Robots Destroyed (20) 100 Value Destroyed (642) 642 Prototype IDs (1) 20 Alien Tech Used (0) 0 Bonus (0) 0 TOTAL SCORE: 2362 Bonus ------- None Cogmind --------- Core Integrity 85/600 Matter 260/300 Energy 100/100 System Corruption 0% Temperature Hot (280) Movement Core (100) Ox1 Location -8/Materials Parts ------- > --- POWER (1) -------- Backup Power I > --- PROPULSION (2) --- VTOL Module > --- UTILITY (1) ------ (None) > --- WEAPON (4) ------- Particle Cannon > --- INVENTORY (0) ---- (None) Peak State ------------ > --- POWER ------------ Light Ion Engine > --- PROPULSION ------- Flight Unit Improved Flight Unit > --- UTILITY ---------- (None) > --- WEAPON ----------- Beam Cannon Particle Cannon > --- INVENTORY -------- (None) [Rating: 8] Favorites ----------- Power Backup Power I Engine Backup Power I Propulsion VTOL Module Flight Unit VTOL Module Utility Backup Plating I Protection Backup Plating I Weapon Particle Cannon Energy Cannon Particle Cannon Ballistic Gun Light Assault Rifle Build | -11 -10 -9 -8 ------- Run | Yrd Mat Mat Mat Slots Evolved 4 | 4 . . . Power . | . . . . Propulsion 1 | 1 . . . Utility . | . . . . Weapon 3 | 3 . . . Parts Attached 10 | 2 1 7 . Power 2 | . . 2 . Engine 2 | . . 2 . Core . | . . . . Reactor . | . . . . Propulsion 4 | . . 4 . Treads . | . . . . Leg . | . . . . Wheel . | . . . . Hover . | . . . . Flight 4 | . . 4 . Utility . | . . . . Device . | . . . . Storage . | . . . . Processor . | . . . . Hackware . | . . . . Protection . | . . . . Artifact . | . . . . Weapon 4 | 2 1 1 . Energy Gun . | . . . . Energy Cannon 2 | . 1 1 . Ballistic Gun 2 | 2 . . . Ballistic Cannon . | . . . . Launcher . | . . . . Special Weapon . | . . . . Impact Weapon . | . . . . Slashing Weapon . | . . . . Piercing Weapon . | . . . . Special Melee Weapon . | . . . . Unidentified Prototypes 1 | . . 1 . Parts Lost 3 | . . 1 2 Power 1 | . . 1 . Propulsion 1 | . . . 1 Utility 1 | . . . 1 Weapon . | . . . . Highest Loss Streak 1 | . . 1 1 To Critical Strikes . | . . . . Average Backups . | . . . . Power . | . . . . Propulsion . | . . . . Utility . | . . . . Weapon . | . . . . Tool/Special . | . . . . Unused Backups . | . . . . Power . | . . . . Propulsion . | . . . . Utility . | . . . . Weapon . | . . . . Tool/Special . | . . . . Average Slot Usage (%) 38 | . 18 37 54 Engine 5 | . . 4 10 Flight 16 | . . 19 25 Protection 1 | . . . 6 Energy Cannon 12 | . 8 13 12 Ballistic Gun 2 | . 10 . . Peak Build Rating 8 | 2 3 8 8 Average Rating 4 | . 1 5 7 On Entrance 2 | . 2 1 6 Avg Prop Armor Cover (%) . | . . . . Naked Turns . | . . . . Heaviest Build 10 | 3 6 10 6 Greatest Support 9 | 3 3 9 8 Greatest Overweight (x) 1 | . 1 1 1 Average Overweight (x) . | . . . . Largest Inventory Capacity . | . . . . Average Capacity . | . . . . Most Carried . | . . . . Average Carried . | . . . . Final Capacity . | . . . . Final Carried . | . . . . Class Distribution -------------------- 49% | Mutant 44% | Sprinter 5% | Gunner Dominant Class ---------------- Mutant | -10/Materials Mutant | -9/Materials Sprinter | -8/Materials Resources | -11 -10 -9 -8 ----------- Run | Yrd Mat Mat Mat Matter Collected 314 | 181 53 80 . Remotely . | . . . . Salvage Created 443 | . 79 303 61 Parts 45 | . 11 24 10 Haulers Intercepted . | . . . . Recyclers Shooed . | . . . . Parts Field Recycled . | . . . . Retrieved Matter . | . . . . Parts Self-Destructed . | . . . . Prevented . | . . . . Parts Restored . | . . . . Kills | -11 -10 -9 -8 ------- Run | Yrd Mat Mat Mat Combat Hostiles Destroyed 18 | . 3 12 3 Cannons 18 | . 3 12 3 Classes Destroyed 4 | . 2 2 . Builder 2 | . 2 . . Swarmer 3 | . . 3 . Grunt 12 | . 3 7 2 Sentry 3 | . . 2 1 Best Kill Streak 5 | . 3 5 2 Combat Bots Only 5 | . 2 5 2 Max Kills in Single Turn 1 | . 1 1 1 Gunslinging . | . . . . Exploded . | . . . . Melee . | . . . . Uniques/NPCs Destroyed . | . . . . Combat | -11 -10 -9 -8 -------- Run | Yrd Mat Mat Mat Hostile Shots Fired 142 | . 16 87 39 Missed 40 | . 5 27 8 Hits 102 | . 11 60 31 Projectile 102 | . 11 60 31 Critical Strikes 4 | . . 2 2 Damage Taken 1616 | . 121 814 681 Core 1343 | . 102 682 559 Absorbed by Shields . | . . . . Redirected to Core 722 | . 58 427 237 Core Remaining (%) 88 | 100 100 65 . Volleys Fired 98 | . 18 43 37 Largest 3 | . 3 2 1 Hottest 128 | . 100 128 68 Shots Fired 105 | . 20 48 37 Gun 2 | . 2 . . Cannon 103 | . 18 48 37 Launcher . | . . . . Special . | . . . . Kinetic 2 | . 2 . . Thermal 103 | . 18 48 37 Explosive . | . . . . Electromagnetic . | . . . . Robot Hit Streak 9 | . 4 7 9 Robot Miss Streak 3 | . 2 2 3 Penetration Max . | . . . . Secondary Targets . | . . . . Shots Hit Robots 68 | . 10 34 24 Core Hits 26 | . 5 13 8 Critical Kills . | . . . . Critical Parts Destroyed . | . . . . Critical Strikes . | . . . . Melee Attacks . | . . . . Impact . | . . . . Slashing . | . . . . Piercing . | . . . . Sneak Attacks . | . . . . Combat Hostiles . | . . . . Follow-up Attacks . | . . . . Damage Inflicted 1321 | . 176 654 491 Guns 18 | . 18 . . Cannons 1303 | . 158 654 491 Explosions . | . . . . Melee . | . . . . Ramming . | . . . . Kinetic 18 | . 18 . . Thermal 1303 | . 158 654 491 Explosive . | . . . . Electromagnetic . | . . . . Impact . | . . . . Slashing . | . . . . Piercing . | . . . . Highest Corruption 1 | . . 1 . Average Corruption 1 | . . 1 . Corruption Purged . | . . . . Corruption Blocked . | . . . . Effects 4 | . . 4 . Matter Fused 2 | . . 2 . Heat Flow Errors 1 | . . 1 . Data Loss (minor) 1 | . . 1 . Overload Shots . | . . . . Overflow Damage 8 | . . . 8 Projectiles 8 | . . . 8 Explosions . | . . . . Melee . | . . . . Knockbacks . | . . . . Impact . | . . . . Kinetic . | . . . . Secondary . | . . . . Self-Inflicted Damage 72 | . . 72 . Shots 2 | . . 2 . Rammed . | . . . . Targets Rammed . | . . . . Kicked . | . . . . Crushed . | . . . . Highest Temperature 697 | . 140 408 697 Average Temperature 181 | . 44 149 273 Received Heat Transfer 762 | . 66 381 315 Effects 13 | . . 2 11 Shutdowns 4 | . . 1 3 Energy Bleed 3 | . . . 3 Matter Decay 1 | . . . 1 Short Circuit 1 | . . . 1 Damage (minor) 2 | . . 1 1 Damage (core) 2 | . . . 2 Siege Activations . | . . . . Martial Activations . | . . . . Shielding Activations . | . . . . Robots Disrupted . | . . . . Combat Hostiles . | . . . . Robots Corrupted . | . . . . Combat Hostiles . | . . . . Parts Fried . | . . . . Impact Corruptions . | . . . . Robots Melted . | . . . . Combat Hostiles . | . . . . Parts Melted 2 | . . 1 1 Heat Transferred 2516 | . 333 1295 888 Parts Sabotaged . | . . . . Parts Stolen . | . . . . Parts Stripped . | . . . . Power Chain Reactions 1 | . . 1 . Alert | -11 -10 -9 -8 ------- Run | Yrd Mat Mat Mat Maximum Alert Level 1 | . . 1 . Low Security (%) 89 | 100 100 74 100 Level 1 10 | . . 25 . Level 2 . | . . . . Level 3 . | . . . . Level 4 . | . . . . Level 5 . | . . . . High Security . | . . . . Max Security . | . . . . Peak Influence 242 | . 45 242 142 Initial 97 | . . 18 97 Average 88 | . 16 136 101 Influence Increases 549 | . 80 354 115 Destroy 0b10 Robot/C 360 | . 60 240 60 Destroy 0b10 Robot/NC 10 | . 10 . . Destroy Leader 70 | . 10 50 10 Disable Machine 30 | . . 30 . Destroy Structure 4 | . . 4 . Lose Combat Pursuer 75 | . . 30 45 Influence Decreases 447 | . 35 167 245 Entered New Map 162 | . . 27 135 Time Decay 255 | . 35 130 90 Lost Part 30 | . . 10 20 Squads Dispatched 4 | . 1 1 2 Investigation 2 | . 1 . 1 Extermination . | . . . . Reinforcement 2 | . . 1 1 Assault . | . . . . Garrison . | . . . . Intercept . | . . . . Searches Triggered . | . . . . Construction Impeded . | . . . . Haulers Reinforced . | . . . . Active Scanning Responses . | . . . . Cargo Convoy Interrupts . | . . . . Stealth | -11 -10 -9 -8 --------- Run | Yrd Mat Mat Mat Distress Signals 2 | . . . 2 Communications Jammed . | . . . . Distress Signals . | . . . . Times Spotted 28 | . 5 12 11 Peak Tracking Total 6 | . 3 6 6 Tactical Retreats 2 | . . 1 1 Traps | -11 -10 -9 -8 ------- Run | Yrd Mat Mat Mat Traps Triggered 2 | . 1 . 1 Indirectly . | . . . . Trap Hack Attempts . | . . . . Triggered . | . . . . Disarmed . | . . . . Reprogrammed . | . . . . Reused . | . . . . Traps Extracted . | . . . . Installed . | . . . . Triggered . | . . . . Machines | -11 -10 -9 -8 ---------- Run | Yrd Mat Mat Mat Machines Disabled 2 | . . 2 . Max in Single Turn 2 | . . 2 . Machines Repaired . | . . . . Machines Dismantled . | . . . . Machines Sabotaged . | . . . . Overloaded Fab Kills . | . . . . Hacking | -11 -10 -9 -8 --------- Run | Yrd Mat Mat Mat Machines Accessed 1 | . . . 1 Terminals . | . . . . Fabricators . | . . . . Repair Stations 1 | . . . 1 Recycling Units . | . . . . Scanalyzers . | . . . . Garrison Access . | . . . . Total Hacks 2 | . . . 2 Successful 1 | . . . 1 Failed 1 | . . . 1 Catastrophic 1 | . . . 1 Database Lockouts . | . . . . Manual . | . . . . Terminals . | . . . . Fabricators . | . . . . Repair Stations 2 | . . . 2 Recycling Units . | . . . . Scanalyzers . | . . . . Garrison Access . | . . . . Terminal Hacks . | . . . . Fabricator Hacks . | . . . . Repair Station Hacks 1 | . . . 1 Refit 1 | . . . 1 Recycling Unit Hacks . | . . . . Scanalyzer . | . . . . Garrison Access Hacks . | . . . . Unauthorized Hacks . | . . . . Terminals . | . . . . Fabricators . | . . . . Repair Stations . | . . . . Recycling Units . | . . . . Scanalyzers . | . . . . Garrison Access . | . . . . Data Cores Recovered . | . . . . Used . | . . . . Hacking Detections 1 | . . . 1 Full Trace Events 1 | . . . 1 Feedback Events . | . . . . Feedback Blocked . | . . . . Robot Schematics Acquired . | . . . . Robots Built . | . . . . Authchips . | . . . . Time . | . . . . Total Robot Build Rating . | . . . . Part Schematics Acquired . | . . . . Parts Built . | . . . . Authchips . | . . . . Time . | . . . . Total Part Build Rating . | . . . . Part Studies Acquired . | . . . . Parts Repaired . | . . . . Time . | . . . . Parts Recycled . | . . . . Recycled Matter . | . . . . Retrieved Matter . | . . . . Retrieved Components . | . . . . Parts Scanalyzed . | . . . . Part Schematics Acquired . | . . . . Parts Damaged . | . . . . Bothacking | -11 -10 -9 -8 ------------ Run | Yrd Mat Mat Mat Used RIF Installer . | . . . . Robots Hacked . | . . . . Non-combat . | . . . . Combat . | . . . . Robot Hacks Applied . | . . . . Relay Couplers Released . | . . . . Fabnet Peak Effective % . | . . . . Robots Rewired . | . . . . Allies Hacked . | . . . . Hacks Repelled . | . . . . Allies | -11 -10 -9 -8 -------- Run | Yrd Mat Mat Mat Total Allies . | . . . . Largest Group . | . . . . Highest-Rated Group . | . . . . Highest-Rated Ally . | . . . . Total Orders . | . . . . Ally Attacks . | . . . . Total Damage . | . . . . Kills . | . . . . Allies Corrupted . | . . . . Allies Melted . | . . . . Intel | -11 -10 -9 -8 ------- Run | Yrd Mat Mat Mat Active Infowar (turns) . | . . . . Robot Analysis Total . | . . . . Derelict Logs Recovered . | . . . . Drone Launches . | . . . . Drone Recoveries . | . . . . Exploration | -11 -10 -9 -8 ------------- Run | Yrd Mat Mat Mat Turns Passed 644 | 54 139 264 187 Spaces Moved 749 | 102 167 292 188 Core 316 | 102 167 46 1 Treads . | . . . . Legs . | . . . . Wheels . | . . . . Hover . | . . . . Flight 433 | . . 246 187 Fastest Speed 32 | 50 50 32 32 Average Speed 42 | 50 55 40 32 Slowest Speed 112 | 50 100 112 100 Overloaded Moves . | . . . . Propulsion Burnouts . | . . . . Robots Hopped 12 | . . 6 6 Potential Cave-ins . | . . . . Cave-ins Triggered . | . . . . Exploration Rate (%) 19 | 4 35 22 15 Regions Visited 3 Branch Regions . Pre-discovered Areas . | . . . . Known Exits Taken . | . . . . Unknown Exits Taken 3 | 1 1 1 . Scrap Searched . | . . . . Spaces Dug . | . . . . Terrain Destroyed 2 | . . 2 . Melee . | . . . . Projectile . | . . . . AOE 2 | . . 2 . Terrain Rammed . | . . . . Walls Destroyed . | . . . . Machines Disabled . | . . . . Actions | -11 -10 -9 -8 --------- Run | Yrd Mat Mat Mat Total 950 | 103 194 382 271 Wait 64 | . 1 23 40 Move 724 | 101 166 280 177 Hop 10 | . . 5 5 Pick Up . | . . . . Fast Attach 8 | 2 1 5 . Attach . | . . . . Detach . | . . . . Swap 2 | . . 2 . Drop 5 | . 2 3 . Fire 98 | . 18 43 37 Melee . | . . . . Ram . | . . . . Kick . | . . . . Crush . | . . . . Escape Stasis . | . . . . Rewire . | . . . . Trap . | . . . . Miscellaneous 39 | . 6 21 12 Route ------- -11/Scrapyard -10/Materials -9/Materials (discovered 2 exits: *Mat / [*Sto]) -8/Materials History --------- Turn | Location | Event 4 | -11/Scrapyard | Discovered new exit (range 16) 42 | -11/Scrapyard | Upgraded with Propulsion slot (x1) 42 | -11/Scrapyard | Upgraded with Weapon slot (x3) 55 | -11/Scrapyard | Entered Materials 100 | -10/Materials | Discovered new exit (range 10) 194 | -10/Materials | Entered another Materials area 196 | -9/Materials | Reached level 2 273 | -9/Materials | Core integrity fell below 50% 342 | -9/Materials | Core integrity fell below 20% 362 | -9/Materials | Reached level 3 402 | -9/Materials | Discovered new exit (range 15) 457 | -9/Materials | Discovered new exit (range 6) 458 | -9/Materials | Entered another Materials area 460 | -8/Materials | Reached level 4 613 | -8/Materials | Core integrity fell below 50% 624 | -8/Materials | Core integrity fell below 20% 645 | -8/Materials | Self-destructed Last Messages --------------- W-25 Informer sends out distress signal. G-47 Trooper destroyed. Overheating: Energy bleed (-23). Overheating: VTOL Module damaged (-5). Critical hit (Burn: +37). Power failure, Backup Power I shutdown. Overheating: Core damaged (-108). G-47 Trooper heat damages Lgt. Nuclear Core. Critical hit (Burn: +37). Power failure, Backup Power I shutdown. Used Protomatter to restore core integrity (+105, depleted) Overheating: Energy bleed (-11). Overheating: Core damaged (-90). Power failure, Backup Power I shutdown. Overheating: Energy bleed (-15). Overheating: Matter decay (-45). VTOL Module broken. Overheating: Short circuit. M-13 Machinist repairs G-47 Trooper Particle Gun. VTOL Module destroyed. Map ----- +----------------------------------------------------+ | | | | | | | | | | | | | | | | | | | | | | | | | | | | | | | | | | | | | ????????????????????????????#####????????????????? | | ????????????????????????????# ???????????????## | | ????????????????????????????# "" ??????????????# | | ??#########?????????????????# "Y ###???????????# | | ??# #?????????????##### "" + ############# | | ??# ############### # # + | | ??# # # # | | ??######+###### ######@*[# ?# !== # | | ?????? ???# ####### ######?# !== ## | | ????# " ?# #[ #*#??????# !== | | ????# ][[ T ## # """#%#??????#[ ###+### | | ????# ][[ " ## # R"#%#??????# #? ?? | | ????# ][[ ## + """#[######## """ #?!!!?? | | ????# ####### #=! """ # !!! ? | | ????# % #?????# # """ # !! ? | | ????# #?????# # ####### | | ????# #?????####### ! | | ????##########???????????### #######T############# | | ???????????????????????????# #?????###???????????? | | ???????????????????????????# #???????????????????? | | ???????????????????????????# #???????????????????? | | ???????????????????????????# #???????????????????? | | ?????????????????????????? #???????????????????? | | ???????????????????????? #???????????????????? | | ?????????????????????? #???????????????????? | | ???????????????????? / #???????????????????? | | ?????????????????? # #???????????????????? | | ?????????????????##/?# #???????????????????? | | ?????????????????????# #???????????????????? | | ?????????????????????# ##### #???????????????????? | | ?????????????????????# ????? ????????????????????? | | ?????????????????????#?????? ????????????????????? | +----------------------------------------------------+ Best States ------------- Heat Dissipation 25 Energy Generation 10 Energy Capacity 125 Matter Stores 300 Matter Capacity 300 Sight Range 16 Terrain Scan Density 10 Armor Coverage 80 Evasion (%) 63 Item Schematics ----------------- None Robot Schematics ------------------ None Fabricated ------------ Nothing Repaired ---------- Nothing Studied --------- None Alien Tech Used ----------------- None Achievements -------------- None Challenges ------------ None RPGLIKE | -11 -10 -9 -8 --------- Run | Yrd Mat Mat Mat Levels Raised 3 | . . 2 1 XP Earned 8300 | 3000 350 3100 1850 XP Spent 2900 | 2900 . . . Upgrades 4 | 4 . . . Propulsion Slot 1 | 1 . . . Weapon Slot 3 | 3 . . . Protomatter Created 349 | . 82 183 84 Integrity Restored 847 | . 121 474 252 Core 828 | . 102 474 252 Parts 19 | . 19 . . Protomatter Decayed 55 | . 41 14 . Game ------ Seed ProjectileDisruptionTreads Manual? 0 Play Time 00:08:14 Cumulative 362.1 hours Start 2025.10.31 @ 18:53:55 End 2025.10.31 @ 19:00:16 Sessions 1 Manual Loads 0 Difficulty Rogue Special Mode Winter2019/RPGLIKE Game No. 338 Rogue 149 Adventurer 177 Explorer 12 Win Type - Total 76 Types 23/2/19/3/12/0/5/6/0/6 Lore% 59 Gallery% 58 Achievement% 53 Wizard Run 0 Options --------- Layout 0 ASCII 0 Keyboard 0 Movement Numpad Keybinds 0 Fullscreen 2 Font 12/Smallcaps Map View 83x54 Zoom Use 0% Tactical HUD 0 Map Filters NONE Filters NONE Steam 1 RUN: 25e68e1b-d2ae-445d-b23e-9f28b6e46cd9